bitfinex-derivatives/quotes_SOLF0:USTF0_20251107
["timestamp","ask_amount","ask_price","bid_price","bid_amount"]
[1762500330272,0.04041179,156.68,156.64,2.99]
[1762500330474,3.13041179,156.68,156.64,2.99]
[1762500330978,3.13041179,156.68,156.64,8.7388]
[1762500331576,3.09,156.67,156.61,8.7397]
[1762500331771,3.13105706,156.66,156.61,2.99]
[1762500332171,3.13105706,156.66,156.62,2.99]
[1762500332372,3.13864541,156.66,156.56,2.99]
[1762500332578,3.13639699,156.63,156.58,2.99]
[1762500333277,0.04639699,156.63,156.58,2.99]
[1762500333688,3.13639699,156.63,156.58,2.99]
[1762500334296,3.13639699,156.63,156.59,2.99]
[1762500334591,0.04639699,156.63,156.59,2.99]
[1762500334795,3.09,156.74,156.63,2.99]
[1762500335391,3.09,156.73,156.67,5.7476]
[1762500336195,3.13480718,156.72,156.68,0.04639699]
[1762500336696,3.13480718,156.72,156.68,8.78369699]
[1762500337095,3.13480718,156.72,156.68,3.03639699]
[1762500337497,3.13480718,156.72,156.68,8.78369699]
[1762500338800,0.04480718,156.72,156.7,2.96]
[1762500339195,0.04480718,156.72,156.71,2.96]
[1762500340086,0.04480718,156.72,156.69,2.96]
[1762500340287,0.04480718,156.72,156.69,4.79566313]
[1762500340500,0.04480718,156.72,156.7,2.96]
[1762500340691,0.04480718,156.72,156.71,2.96]
[1762500341291,3.05,156.8,156.75,2.96]
[1762500341497,3.05,156.79,156.75,2.96]
[1762500341697,1.83566313,156.78,156.72,2.96]
[1762500342296,0.04307264,156.77,156.74,2.96]
[1762500343895,0.04307264,156.77,156.74,4.79566313]
[1762500344096,0.04307264,156.77,156.74,1.83566313]
[1762500344299,0.04307264,156.77,156.75,2.99]
[1762500345191,0.04307264,156.77,156.73,3.03785125]
[1762500345192,3.26307264,156.77,156.73,3.03785125]
[1762500345599,3.22,156.75,156.73,0.04785125]
[1762500345794,5.05566313,156.76,156.73,0.04785125]
[1762500345998,3.22,156.75,156.73,0.04785125]
[1762500347107,5.05566313,156.76,156.73,0.04785125]
[1762500347303,5.05566313,156.74,156.73,0.04785125]
[1762500347607,1.83566313,156.75,156.73,0.04785125]
[1762500347799,5.05566313,156.75,156.73,0.04785125]
[1762500348795,3.22,156.74,156.73,0.04785125]
[1762500350205,1.83566313,156.75,156.73,0.04785125]
[1762500350206,10.80076313,156.75,156.73,0.04785125]
[1762500350402,3.22,156.74,156.67,2.99]
[1762500350605,1.83566313,156.73,156.67,2.99]
[1762500351104,5.05566313,156.73,156.67,2.99]
[1762500351302,0.04494652,156.72,156.68,0.04335292]
[1762500351507,3.26494652,156.72,156.68,3.03335292]
[1762500353507,3.26494652,156.72,156.68,0.04335292]
[1762500353708,3.26494652,156.72,156.68,3.03335292]
[1762500354002,0.04494652,156.72,156.68,3.03335292]
[1762500354202,3.26494652,156.72,156.68,3.03335292]
[1762500355409,5.10060965,156.72,156.68,3.03335292]
[1762500355805,3.22,156.71,156.68,3.03335292]
[1762500356210,1.88060965,156.72,156.68,3.03335292]
[1762500356409,5.10060965,156.72,156.68,3.03335292]
[1762500356711,3.22,156.71,156.68,3.03335292]
[1762500357206,3.22,156.71,156.68,0.04335292]
[1762500357402,3.22,156.69,156.62,2.99]
[1762500357602,1.83566313,156.7,156.63,2.99]
[1762500357902,3.22,156.69,156.63,2.99]
[1762500358109,5.05566313,156.68,156.6,2.99]
[1762500358409,0.04437389,156.66,156.62,2.99]
[1762500358704,0.04509632,156.66,156.62,2.99]
[1762500359007,0.04509632,156.66,156.62,8.7396]
[1762500359206,0.04509632,156.66,156.63,2.99]
[1762500360797,0.04509632,156.66,156.65,2.99]
[1762500361002,0.0418431,156.67,156.6,2.99]
[1762500361305,0.04202106,156.65,156.6,8.7402]
[1762500361608,0.04202106,156.65,156.6,2.99]
[1762500362602,3.26202106,156.65,156.6,2.99]
[1762500363499,0.04202106,156.65,156.6,2.99]
[1762500364303,0.04202106,156.65,156.63,2.99]
[1762500364700,3.22,156.7,156.63,8.7391]
[1762500364904,1.83566313,156.69,156.63,8.7391]
[1762500365204,1.83566313,156.69,156.64,2.99]
[1762500365409,4.75936696,156.73,156.57,11.84910041]
[1762500365410,1.83566313,156.71,156.66,2.99]
[1762500365708,1.83566313,156.71,156.65,5.7483]
[1762500365709,5.09848501,156.7,156.67,0.04202106]
[1762500365905,0.04700274,156.7,156.67,3.03202106]
[1762500368909,3.26700274,156.7,156.67,3.03202106]
[1762500369512,0.04700274,156.7,156.67,3.03202106]
[1762500370214,0.04700274,156.7,156.67,8.77962106]
[1762500370415,0.04700274,156.7,156.68,2.99]
[1762500371009,3.26700274,156.7,156.67,0.04202106]
[1762500371211,3.22,156.68,156.67,0.04202106]
[1762500371607,3.26700274,156.7,156.67,0.04202106]
[1762500371813,0.04700274,156.7,156.67,3.03202106]
[1762500372610,5.05566313,156.68,156.67,0.04202106]
[1762500377922,3.22,156.68,156.67,0.04202106]
[1762500378112,5.06566313,156.69,156.67,0.04202106]
[1762500378415,3.23,156.68,156.67,0.04202106]
[1762500378811,3.27700274,156.7,156.67,3.04202106]
[1762500379010,0.04700274,156.7,156.67,3.04202106]
[1762500380514,0.04700274,156.7,156.68,3.0]
[1762500380916,0.04700274,156.7,156.69,3.0]
[1762500381715,42.5,156.77,156.73,3.0]
[1762500381716,3.23,156.77,156.73,3.0]
[1762500382018,9.80910944,156.76,156.7,3.0]
[1762500382217,7.97344631,156.75,156.7,3.0]
[1762500382421,3.23,156.75,156.7,3.0]
[1762500382817,0.04054843,156.74,156.71,3.04043468]
[1762500383612,0.04054843,156.74,156.71,8.78673468]
[1762500383924,0.04054843,156.74,156.72,4.83566313]
[1762500384123,0.04054843,156.74,156.73,3.0]
[1762500384319,0.04054843,156.74,156.71,3.04043468]
[1762500387128,0.04054843,156.74,156.71,8.78673468]
[1762500387427,0.04054843,156.74,156.72,3.0]
[1762500389524,0.04054843,156.74,156.73,3.0]
[1762500393028,1.11027805,156.82,156.73,3.0]
[1762500393029,3.23,156.81,156.75,8.7449]
[1762500393229,3.23,156.81,156.75,3.0]
[1762500393532,2.94594118,156.82,156.75,3.0]
[1762500393533,3.23,156.79,156.75,3.0]
[1762500394024,3.27598621,156.79,156.75,3.04083603]
[1762500394433,0.04598621,156.79,156.75,3.04083603]
[1762500394827,3.27598621,156.79,156.75,3.04083603]
[1762500395432,0.04598621,156.79,156.75,3.04083603]
[1762500396429,3.27598621,156.79,156.75,3.04083603]
[1762500397231,0.04598621,156.79,156.75,3.04083603]
[1762500399335,0.04598621,156.79,156.75,8.78563603]
[1762500399543,0.04598621,156.79,156.76,2.99]
[1762500400540,0.04598621,156.79,156.77,2.99]
[1762500401440,0.04598621,156.79,156.77,8.7341]
[1762500401739,0.04598621,156.79,156.78,2.99]
[1762500407943,0.04598621,156.79,156.75,3.03083603]
[1762500409945,0.04598621,156.79,156.76,5.7444]
[1762500410247,0.04598621,156.79,156.77,2.99]
[1762500411050,0.04598621,156.79,156.76,2.99]
[1762500411751,0.04598621,156.79,156.77,2.99]
[1762500417746,0.04598621,156.79,156.78,2.99]
[1762500425042,4.72684553,156.84,156.82,5.7422]
[1762500425249,7.8790586,156.85,156.83,2.99]
[1762500425449,3.15,156.85,156.76,2.99]
[1762500426052,3.15,156.85,156.82,2.99]
[1762500426455,3.1974452,156.85,156.82,3.03409993]
[1762500427156,3.1974452,156.85,156.82,8.77639993]
[1762500427356,3.1974452,156.85,156.82,3.03409993]
[1762500430957,0.0474452,156.85,156.82,3.03409993]
[1762500431162,0.0474452,156.85,156.83,2.99]
[1762500431361,3.1974452,156.85,156.82,5.78639993]
[1762500431660,3.1974452,156.85,156.82,8.77639993]
[1762500431865,3.1974452,156.85,156.83,2.99]
[1762500432359,3.1974452,156.85,156.82,8.77639993]
[1762500435762,3.1974452,156.85,156.83,2.99]
[1762500438767,3.1974452,156.85,156.83,8.7319]
[1762500439065,0.0474452,156.85,156.84,2.99]
[1762500441666,3.1074452,156.85,156.82,3.03409993]
[1762500443166,4.75411302,156.84,156.82,3.03409993]
[1762500443360,3.1074452,156.85,156.82,3.03409993]
[1762500443566,3.1074452,156.85,156.83,2.99]
[1762500448357,3.1074452,156.85,156.82,0.04409993]
[1762500448757,3.06,156.83,156.82,0.04409993]
[1762500449064,7.81310175,156.83,156.82,0.04409993]
[1762500451662,3.06,156.82,156.71,11.84910041]
[1762500451867,2.86561672,156.78,156.65,11.84910041]
[1762500452058,3.06,156.76,156.72,2.99]
[1762500452260,3.06,156.75,156.72,2.99]
[1762500452468,4.74809464,156.77,156.72,2.99]
[1762500452668,0.04533515,156.76,156.74,2.99]
[1762500458170,3.10533515,156.76,156.73,3.03348691]
[1762500459567,0.04533515,156.76,156.73,3.03348691]
[1762500461965,0.04533515,156.76,156.74,3.04]
[1762500463973,0.04533515,156.76,156.74,8.7851]
[1762500464175,0.04533515,156.76,156.75,3.04]
[1762500468779,1.83408704,156.81,156.77,3.04]
[1762500469280,1.83408704,156.81,156.78,8.7837]
[1762500469678,1.87903348,156.81,156.78,8.83119055]
[1762500469874,4.81903348,156.81,156.78,8.83119055]
[1762500470076,0.04494644,156.81,156.79,3.04]
[1762500470280,0.04494644,156.81,156.8,3.04]
[1762500470873,4.78419259,156.81,156.8,3.04]
[1762500472380,1.83408704,156.86,156.8,3.04]
[1762500472581,8.09153947,156.85,156.8,3.04]
[1762500472776,5.15153947,156.84,156.8,3.04]
[1762500472975,2.94,156.85,156.8,3.04]
[1762500473176,5.1518495,156.84,156.8,3.04]
[1762500473378,2.94,156.85,156.8,3.04]
[1762500473576,5.19591208,156.84,156.8,3.08244329]
[1762500473778,0.04413139,156.84,156.82,3.04]
[1762500477580,2.98413139,156.84,156.82,3.04]
[1762500477784,2.94,156.82,156.8,0.04244329]
[1762500478585,5.15004376,156.81,156.8,0.04244329]
[1762500479282,2.94,156.82,156.8,0.04244329]
[1762500482888,2.94,156.82,156.8,3.08244329]
[1762500483291,2.94,156.82,156.8,0.04244329]
[1762500483590,2.94,156.82,156.8,3.08244329]
[1762500484089,0.04413139,156.84,156.81,3.04]
[1762500486192,0.04413139,156.84,156.83,3.04]
[1762500487191,2.94,156.89,156.86,3.04]
[1762500487392,8.09511293,156.88,156.85,5.7412]
[1762500487602,5.15511293,156.87,156.85,8.7812]
[1762500487901,2.94,156.88,156.86,3.04]
[1762500488193,5.15500542,156.87,156.86,3.04]
[1762500488990,5.15500542,156.87,156.86,4.87408704]
[1762500489198,0.04754326,156.89,156.88,3.04]
[1762500490302,0.04754326,156.89,156.88,4.87408704]
[1762500495204,0.04754326,156.89,156.86,3.02]
[1762500495389,0.04754326,156.89,156.87,3.02]
[1762500496004,0.04754326,156.89,156.88,3.02]
[1762500496502,0.04754326,156.89,156.88,4.85408704]
[1762500499699,8.21922173,156.97,156.92,2.99]
[1762500500001,3.08,156.95,156.9,1.83408704]
[1762500500196,3.08,156.98,156.92,1.83408704]
[1762500500399,3.08,156.97,156.93,2.99]
[1762500500798,3.12228649,156.97,156.93,3.03378349]
[1762500501200,3.12228649,156.97,156.94,1.83408704]
[1762500502204,0.04228649,156.97,156.95,2.99]
[1762500502502,3.12228649,156.97,156.94,1.83408704]
[1762500502698,3.12228649,156.97,156.94,4.82408704]
[1762500503504,0.04228649,156.97,156.96,4.82408704]
[1762500507907,3.12228649,156.97,156.94,1.83408704]
[1762500508208,3.12228649,156.97,156.94,4.82408704]
[1762500508798,0.04228649,156.97,156.95,2.99]
[1762500509002,0.04228649,156.97,156.96,4.82408704]
[1762500515902,7.9824415,157.01,156.97,2.99]
[1762500516107,3.08,157.01,156.97,2.99]
[1762500516307,7.9824415,157.01,156.97,2.99]
[1762500516605,3.08,157.01,156.97,2.99]
[1762500516910,8.03010765,157.01,156.97,3.03064264]
[1762500517110,3.12766615,157.01,156.98,8.7264]
[1762500517711,3.12766615,157.01,156.98,2.99]
[1762500518512,8.03156883,157.01,156.98,2.99]
[1762500518710,3.12766615,157.01,156.98,2.99]
[1762500518912,8.03156883,157.01,156.98,2.99]
[1762500519112,3.12766615,157.01,156.98,2.99]
[1762500519313,8.03156883,157.01,156.98,2.99]
[1762500519517,3.12766615,157.01,156.98,2.99]
[1762500519713,8.03156883,157.01,156.98,2.99]
[1762500519906,0.04766615,157.01,156.99,2.99]
[1762500520112,4.95156883,157.01,156.99,2.99]
[1762500520305,0.04766615,157.01,156.99,2.99]
[1762500521018,3.18766615,157.01,156.99,2.99]
[1762500521413,0.04766615,157.01,156.99,2.99]
[1762500521817,3.18766615,157.01,156.99,2.99]
[1762500522221,3.18766615,157.01,156.97,3.03064264]
[1762500523313,3.18766615,157.01,156.98,2.99]
[1762500523616,0.04766615,157.01,156.98,2.99]
[1762500524117,0.04766615,157.01,156.99,2.99]
[1762500524513,0.04766615,157.01,157.0,2.99]
[1762500525414,3.13,157.08,157.01,2.99]
[1762500525614,8.03723281,157.07,157.01,2.99]
[1762500525819,3.13,157.07,157.01,2.99]
[1762500526418,3.17204218,157.06,157.03,2.99]
[1762500526612,3.17204218,157.06,157.02,0.0419549]
[1762500526810,3.13,157.04,157.02,0.0419549]
[1762500527817,8.8644,157.04,157.02,0.0419549]
[1762500528120,8.03762592,157.03,157.02,0.0419549]
[1762500529623,3.13,157.01,156.94,2.99]
[1762500529820,8.03762592,157.0,156.94,2.99]
[1762500530126,3.13,157.0,156.94,2.99]
[1762500530424,3.13,156.98,156.95,0.04106648]
[1762500530617,8.90698813,156.99,156.95,3.03106648]
[1762500530818,3.13,156.98,156.95,3.03106648]
[1762500534625,3.13,156.98,156.95,0.04106648]
[1762500534828,3.13,156.98,156.95,3.03106648]
[1762500535924,0.04078813,156.99,156.95,3.03106648]
[1762500536125,3.17078813,156.99,156.95,3.03106648]
[1762500537031,0.04078813,156.99,156.95,3.03106648]
[1762500537420,0.04078813,156.99,156.95,5.88870177]
[1762500537625,0.04078813,156.99,156.96,2.99]
[1762500538029,0.04078813,156.99,156.97,2.99]
[1762500539932,0.04078813,156.99,156.97,8.7267]
[1762500540533,0.04078813,156.99,156.98,2.99]
[1762500545135,5.82433991,157.04,156.98,2.99]
[1762500545136,3.13,157.04,156.98,2.99]
[1762500545337,8.07174209,157.03,156.98,2.99]
[1762500545633,4.94174209,157.02,156.98,2.99]
[1762500545941,4.94174209,157.01,156.99,2.99]
[1762500546134,4.94063139,157.0,156.99,2.99]
[1762500547335,4.94063139,157.0,156.98,0.04716245]
[1762500547534,3.17386562,157.02,156.98,0.04716245]
[1762500547746,3.13,157.0,156.98,0.04716245]
[1762500547946,4.94152394,156.99,156.98,3.03716245]
[1762500549551,0.04386562,157.02,156.98,3.03716245]
[1762500549752,4.94362026,157.01,156.98,3.03716245]
[1762500550048,0.04386562,157.02,156.98,3.03716245]
[1762500550253,4.94362411,157.01,157.0,2.99]
[1762500552047,4.94362411,157.01,156.99,5.7361]
[1762500552247,4.94362411,157.0,156.99,8.7261]
[1762500552647,4.94362411,157.0,156.99,2.99]
[1762500552848,4.94362411,157.0,156.98,0.04716245]
[1762500553154,3.13,157.0,156.98,0.04716245]
[1762500553354,8.07211386,156.99,156.98,0.04716245]
[1762500553858,3.13,156.98,156.93,2.99]
[1762500554059,3.13,156.96,156.93,2.99]
[1762500554757,9.00993299,156.99,156.93,2.99]
[1762500554956,8.06399729,156.98,156.94,3.03371411]
[1762500555153,4.94048459,156.97,156.94,3.03371411]
[1762500555357,3.12030505,156.98,156.95,2.99]
[1762500555358,0.04030505,156.98,156.95,2.99]
[1762500555852,0.04030505,156.98,156.97,2.99]
[1762500556354,4.94155568,157.02,157.0,2.99]
[1762500556559,3.08,157.04,157.0,2.99]
[1762500556760,8.02177569,157.03,157.0,2.99]
[1762500556960,4.94177569,157.02,157.0,2.99]
[1762500557163,3.08,157.03,157.0,8.7257]
[1762500557454,4.94145399,157.02,157.01,2.99]
[1762500558257,0.04276031,157.03,157.01,2.99]
[1762500558457,0.04276031,157.03,157.01,8.7252]
[1762500558662,0.04276031,157.03,157.02,2.99]
[1762500558860,4.98316536,157.03,157.02,2.99]
[1762500559363,0.04276031,157.03,157.02,2.99]
[1762500560958,4.90987455,157.06,157.02,2.99]
[1762500561266,3.08,157.09,157.02,2.99]
[1762500561462,7.98781299,157.08,157.05,2.99]
[1762500561762,4.90781299,157.07,157.05,3.03694613]
[1762500562063,0.04204505,157.08,157.05,3.03694613]
[1762500562257,4.907519,157.07,157.05,3.03694613]
[1762500562458,0.04204505,157.08,157.05,3.03694613]
[1762500562659,4.90582178,157.07,157.05,3.03694613]
[1762500562859,3.12204505,157.08,157.05,3.03694613]
[1762500563062,4.90582368,157.07,157.05,3.03694613]
[1762500563255,3.12204505,157.08,157.05,3.03694613]
[1762500563451,4.90438207,157.07,157.05,3.03694613]
[1762500563657,3.12204505,157.08,157.05,3.03694613]
[1762500563858,4.90438207,157.07,157.05,3.03694613]
[1762500564056,3.12204505,157.08,157.05,3.03694613]
[1762500564256,3.08,157.07,157.05,0.04694613]
[1762500565762,3.08,157.06,157.05,0.04694613]
[1762500565967,3.08,157.05,156.98,2.99]
[1762500566163,4.90113256,157.04,156.98,2.99]
[1762500566363,3.08,157.05,156.98,2.99]
[1762500566564,4.90033085,157.04,156.98,2.99]
[1762500566765,3.08,157.05,156.98,2.99]
[1762500566967,10.63473085,157.04,156.98,8.7263]
[1762500567168,0.04577953,157.03,157.0,2.99]
[1762500570371,3.12577953,157.03,156.99,3.03495508]
[1762500570869,8.86057953,157.03,156.99,3.03495508]
[1762500572476,3.08,157.02,156.99,3.03495508]
[1762500573771,8.8151,157.02,156.99,0.04495508]
[1762500573971,3.08,157.01,156.99,0.04495508]
[1762500581177,0.04577953,157.03,156.99,3.03495508]
[1762500582281,0.04577953,157.03,157.01,2.99]
[1762500583884,0.04577953,157.03,156.99,2.90259037]
[1762500583885,3.09,157.1,157.02,2.99]
[1762500584186,7.99609933,157.09,157.02,2.99]
[1762500584386,4.90609933,157.08,157.03,2.98]
[1762500584687,2.95,157.1,157.05,2.98]
[1762500584877,0.04527578,157.09,157.06,0.04872006]
[1762500585085,0.04527578,157.09,157.07,2.98]
[1762500586986,0.04527578,157.09,157.07,8.7131]
[1762500587187,0.04527578,157.09,157.08,2.98]
[1762500590795,4.77723143,157.15,157.09,2.98]
[1762500591194,2.95,157.14,157.09,2.98]
[1762500591387,2.95,157.12,157.06,10.54053143]
[1762500591592,2.95,157.12,157.07,2.98]
[1762500591794,0.04643668,157.11,157.08,0.04462895]
[1762500591989,0.04643668,157.11,157.08,3.02462895]
[1762500592990,2.99643668,157.11,157.08,3.02462895]
[1762500593690,2.99643668,157.11,157.08,0.04462895]
[1762500593891,2.95,157.1,157.08,0.04462895]
[1762500600298,4.77723143,157.09,157.08,0.04462895]
[1762500602005,2.95,157.08,157.03,8.7145]
[1762500602297,2.95,157.08,157.04,2.98]
[1762500602900,2.99375322,157.08,157.04,3.02528082]
[1762500603400,2.99375322,157.08,157.05,2.98]
[1762500604008,2.99375322,157.08,157.04,3.02528082]
[1762500604207,2.95,157.07,157.04,3.02528082]
[1762500605806,1.87098465,157.08,157.05,2.98]
[1762500606003,0.04375322,157.08,157.05,2.98]
[1762500606207,0.04375322,157.08,157.06,2.98]
[1762500606910,2.99375322,157.08,157.06,5.7335]
[1762500607105,2.99375322,157.08,157.04,3.02528082]
[1762500608013,4.82098465,157.08,157.04,0.04528082]
[1762500608212,2.95,157.07,157.04,0.04528082]
[1762500608606,1.82723143,157.06,157.04,0.04528082]
[1762500608803,2.95,157.05,157.04,0.04528082]
[1762500609008,4.77723143,157.06,157.04,0.04528082]
[1762500609610,2.95,157.06,157.04,0.04528082]
[1762500610709,4.77723143,157.06,157.04,0.04528082]
[1762500610910,2.95,157.05,157.04,0.04528082]
[1762500611520,1.82723143,157.06,157.04,3.02528082]
[1762500611815,2.95,157.07,157.04,0.04528082]
[1762500613814,2.95,157.07,157.04,3.02528082]
[1762500614713,0.04375322,157.08,157.05,4.81723143]
[1762500614921,0.04375322,157.08,157.06,2.99]
[1762500615311,0.04375322,157.08,157.06,8.7234]
[1762500615508,0.04375322,157.08,157.07,2.99]
[1762500616313,0.04375322,157.08,157.07,4.81723143]
[1762500620020,3.16,157.13,157.09,2.99]
[1762500621013,3.20814947,157.13,157.09,3.03458136]
[1762500622022,3.20814947,157.13,157.09,8.76678136]
[1762500624227,3.20814947,157.13,157.1,2.99]
[1762500626123,0.04814947,157.13,157.12,2.99]
[1762500626721,0.04814947,157.13,157.11,7.55883143]
[1762500626920,3.20814947,157.13,157.11,5.7316]
[1762500627425,0.04814947,157.13,157.11,8.7216]
[1762500629023,0.04814947,157.13,157.11,2.99]
[1762500629324,3.20814947,157.13,157.09,3.03458136]
[1762500629721,3.16,157.11,157.09,0.04458136]
[1762500630523,3.20814947,157.13,157.09,8.76688136]
[1762500630717,3.20814947,157.13,157.1,2.99]
[1762500630916,0.04814947,157.13,157.1,2.99]
[1762500631123,0.04814947,157.13,157.12,2.99]
[1762500636338,4.88012323,157.17,157.14,2.99]
[1762500636642,4.98723143,157.21,157.14,2.99]
[1762500636939,4.87968331,157.2,157.14,2.99]
[1762500637136,4.87968331,157.19,157.14,2.99]
[1762500637338,8.03968331,157.18,157.15,0.04811333]
[1762500637538,3.16,157.18,157.15,3.03811333]
[1762500639044,3.16,157.18,157.16,2.98]
[1762500639340,1.87095111,157.19,157.16,2.98]
[1762500639341,4.93095111,157.19,157.16,2.98]
[1762500639842,3.06,157.18,157.15,5.77831333]
[1762500640242,3.06,157.18,157.15,8.75831333]
[1762500640434,3.06,157.16,157.15,0.04811333]
[1762500644946,3.06,157.16,157.1,1.82723143]
[1762500644947,2.96,157.15,157.1,5.7319]
[1762500645345,2.96,157.15,157.1,8.7119]
[1762500646151,3.00795528,157.14,157.11,0.04630957]
[1762500646337,3.00795528,157.14,157.11,8.75800957]
[1762500649146,3.00795528,157.14,157.12,2.98]
[1762500649353,0.04795528,157.14,157.12,8.7113]
[1762500650751,3.00795528,157.14,157.12,8.7113]
[1762500655848,3.00795528,157.14,157.11,0.04630957]
[1762500656653,2.96,157.12,157.11,0.04630957]
[1762500659054,7.82569351,157.12,157.11,0.04630957]
[1762500662052,2.96,157.11,157.07,2.98]
[1762500662847,2.96,157.11,157.08,2.98]
[1762500663054,3.00399537,157.11,157.08,2.98]
[1762500667759,7.82631619,157.1,157.08,2.98]
[1762500667951,2.96,157.1,157.08,2.98]
[1762500669165,2.96,157.1,157.07,0.04371152]
[1762500669356,2.96,157.1,157.07,3.02371152]
[1762500670854,2.96,157.1,157.08,2.98]
[1762500671254,2.96,157.1,157.07,3.02371152]
[1762500673061,2.96,157.1,157.07,8.75681152]
[1762500673564,3.00399537,157.11,157.08,2.98]
[1762500676464,3.00399537,157.11,157.07,5.77681152]
[1762500676666,3.00399537,157.11,157.07,8.73681152]
[1762500676865,3.00399537,157.11,157.08,2.96]
[1762500677162,3.00399537,157.11,157.08,8.6928]
[1762500678463,0.04399537,157.11,157.1,2.96]
[1762500679360,3.23399537,157.11,157.09,5.7324]
[1762500681562,3.23399537,157.11,157.07,3.00371152]
[1762500681563,3.23399537,157.11,157.07,8.73661152]
[1762500682060,3.23399537,157.11,157.08,2.96]
[1762500682564,3.23399537,157.11,157.08,8.6928]
[1762500683670,3.23399537,157.11,157.09,2.96]
[1762500683970,0.04399537,157.11,157.1,2.96]
[1762500687869,3.23399537,157.11,157.09,8.6924]
[1762500688261,3.23399537,157.11,157.08,2.96]
[1762500688462,3.23399537,157.11,157.07,8.73661152]
[1762500688876,3.23399537,157.11,157.07,3.00371152]
[1762500689667,3.19,157.09,157.07,0.04371152]
[1762500690572,3.19,157.09,157.07,3.00371152]
[1762500690764,0.04399537,157.11,157.07,3.00371152]
[1762500690964,8.06590275,157.1,157.07,3.00371152]
[1762500691171,3.19,157.1,157.07,3.00371152]
[1762500692160,3.19,157.1,157.07,0.04371152]
[1762500692360,6.04297706,157.08,157.01,2.96]
[1762500692565,6.04297706,157.08,156.98,8.6962]
[1762500692566,3.19,157.04,156.98,8.6962]
[1762500692771,3.19,157.02,156.98,8.6962]
[1762500693169,3.19,157.02,156.98,2.96]
[1762500693369,3.19,157.02,156.98,0.04124348]
[1762500693575,3.23031581,157.02,156.98,0.04124348]
[1762500693769,6.08329287,157.02,156.98,0.04124348]
[1762500693968,3.19,157.01,156.98,0.04124348]
[1762500694678,8.9256,157.01,156.98,0.04124348]
[1762500694880,3.19,157.0,156.98,0.04124348]
[1762500696975,8.04491918,156.99,156.98,0.04124348]
[1762500697279,3.19,156.99,156.92,2.96]
[1762500698170,3.19,156.96,156.94,0.04360117]
[1762500705191,3.19,156.96,156.88,2.99]
[1762500705385,3.01,156.94,156.88,2.99]
[1762500706087,3.01,156.94,156.86,5.7407]
[1762500706382,3.01,156.91,156.88,0.04832978]
[1762500707489,3.01,156.91,156.88,3.03832978]
[1762500707883,0.04905448,156.92,156.89,2.99]
[1762500708389,0.04905448,156.92,156.91,4.8200205]
[1762500709886,0.04905448,156.92,156.91,1.8300205]
[1762500710391,3.05905448,156.92,156.89,1.8300205]
[1762500710686,3.05905448,156.92,156.88,10.60835028]
[1762500710889,0.04905448,156.92,156.89,2.99]
[1762500711080,0.04905448,156.92,156.9,4.8200205]
[1762500711686,0.04905448,156.92,156.91,2.99]
[1762500721495,5.7353,157.02,156.95,1.8300205]
[1762500721496,3.01,157.01,156.95,1.8300205]
[1762500721894,3.01,157.01,156.93,1.8300205]
[1762500722096,1.8300205,157.0,156.93,1.8300205]
[1762500722291,3.01,156.99,156.93,5.7381]
[1762500722495,3.01,156.97,156.94,0.04343738]
[1762500722798,3.01,156.97,156.94,0.04124245]
[1762500722799,3.05352812,156.97,156.94,0.04124245]
[1762500724803,8.79042812,156.97,156.94,0.04124245]
[1762500725002,3.01,156.96,156.94,0.04124245]
[1762500725804,3.01,156.95,156.94,0.00313609]
[1762500731804,3.05352812,156.97,156.94,2.99313609]
[1762500732001,3.05352812,156.97,156.94,4.82315659]
[1762500732204,0.04352812,156.97,156.95,2.99]
[1762500732402,0.04352812,156.97,156.96,4.8200205]
[1762500732602,7.84114625,157.02,156.97,2.99]
[1762500732799,3.01,157.02,156.99,2.99]
[1762500733001,3.01,157.02,156.98,4.8200205]
[1762500733308,3.01,157.02,156.97,1.8300205]
[1762500733511,3.01,157.02,156.97,4.8200205]
[1762500734004,3.05628124,157.01,156.98,0.04056619]